Cogmind - Beta 17 @@@ ROGUE MODE // 2026.06.30 @ 02:29:43 Player: hanzu Result: Destroyed by P-80 Master with Gamma Rifle Performance ------------- Evolutions (7) 3500 Regions Visited (13) 2600 Robots Destroyed (156) 780 Value Destroyed (5960) 5960 Prototype IDs (13) 260 Alien Tech Used (0) 0 Bonus (30) 30 TOTAL SCORE: 13130 Bonus ------- High Alert Combat Kills 30 Cogmind --------- Core Integrity 0/1300 Matter 151/300 Energy 100/100 System Corruption 28% Temperature Cool (0) Movement Core (50) Location -3/Quarantine Parts ------- > --- POWER (3) -------- (None) > --- PROPULSION (5) --- (None) > --- UTILITY (10) ----- (None) > --- WEAPON (3) ------- (None) > --- INVENTORY (5) ---- Cooled Fission Core Experimental Thermal Generator Advanced Targeting Computer Heavy Phase Cannon Heavy Phase Cannon Peak State ------------ > --- POWER ------------ Improved Deuterium Engine Light Particle Reactor Micro Antimatter Reactor > --- PROPULSION ------- Shield Leg Shield Leg Experimental Myomer Leg Experimental Myomer Leg Experimental Myomer Leg > --- UTILITY ---------- Cryofiber Web Advanced Heat Sink Large Storage Unit Enhanced Optical Array 0b10 Decoder Chip [Generic] Advanced Targeting Computer Transmission Jammer Layered Heavy Armor Plating Advanced Shield Generator > --- WEAPON ----------- Matter Neutralizer Matter Neutralizer Matter Neutralizer > --- INVENTORY -------- Light Antimatter Reactor Improved Gyrokinetic Inverter Improved Linear Gravjet Improved Linear Gravjet Experimental Power Amplifier High-capacity Battery Advanced EM Shield Heavy Phase Cannon Heavy Phase Cannon Heavy Phase Cannon Heavy Phase Cannon Heavy Phase Cannon Heavy Phase Cannon Fusion Bomb Launcher [Rating: 135] Favorites ----------- Power Improved Deuterium Engine Engine Improved Deuterium Engine Power Core Light Nuclear Core Reactor Light Particle Reactor Propulsion Armored Treads Treads Armored Treads Leg Thunder Leg Hover Unit Improved Antigrav System Flight Unit Impulse Thruster Utility Large Storage Unit Device Cryofiber Web Storage Large Storage Unit Processor Enhanced Optical Array Protection Hardened Light Armor Plating Weapon Compact Ion Cannon Energy Gun Advanced Beam Rifle Energy Cannon Compact Ion Cannon Ballistic Gun Light Assault Rifle Ballistic Cannon Improved Light Cannon Launcher Heavy Missile Launcher Build | -11 -10 -9 -8 -7 -6 -5 -5 -5 -4 -4 -4 -3 -3 ------- Run | Yrd Mat Mat Mat Fac Fac Fac Upp Upp Fac Upp Upp Res Qua Slots Evolved 14 | . . 2 2 2 2 2 . . 2 . . 2 . Power 2 | . . . . . 1 . . . . . . 1 . Propulsion 3 | . . 1 . . 1 . . . . . . 1 . Utility 8 | . . 1 1 2 . 2 . . 2 . . . . Weapon 1 | . . . 1 . . . . . . . . . . Parts Attached 132 | 6 7 7 23 9 13 6 1 . 7 3 . 44 6 Power 16 | 1 . 1 1 1 2 1 . . . 1 . 7 1 Engine 7 | 1 . 1 1 1 1 1 . . . 1 . . . Core 1 | . . . . . 1 . . . . . . . . Reactor 8 | . . . . . . . . . . . . 7 1 Propulsion 37 | 2 2 2 4 1 2 . . . 4 . . 19 1 Treads 11 | . 2 2 4 1 2 . . . . . . . . Leg 18 | 2 . . . . . . . . 4 . . 11 1 Wheel . | . . . . . . . . . . . . . . Hover 7 | . . . . . . . . . . . . 7 . Flight 1 | . . . . . . . . . . . . 1 . Utility 43 | 1 3 2 7 5 2 5 . . 2 2 . 10 4 Device 23 | . 1 . 4 2 1 3 . . 1 1 . 6 4 Storage 7 | 1 2 1 1 . 1 . . . . . . 1 . Processor 8 | . . 1 . 2 . 2 . . 1 1 . 1 . Hackware . | . . . . . . . . . . . . . . Protection 5 | . . . 2 1 . . . . . . . 2 . Artifact . | . . . . . . . . . . . . . . Weapon 36 | 2 2 2 11 2 7 . 1 . 1 . . 8 . Energy Gun 11 | . . 1 6 1 . . . . . . . 3 . Energy Cannon 11 | . . . . . 6 . . . 1 . . 4 . Ballistic Gun 5 | 2 . 1 2 . . . . . . . . . . Ballistic Cannon 4 | . 2 . 2 . . . . . . . . . . Launcher 5 | . . . 1 1 1 . 1 . . . . 1 . Special Weapon . | . . . . . . . . . . . . . . Impact Weapon . | . . . . . . . . . . . . . . Slashing Weapon . | . . . . . . . . . . . . . . Piercing Weapon . | . . . . . . . . . . . . . . Special Melee Weapon . | . . . . . . . . . . . . . . Unidentified Prototypes 11 | . . 3 3 . 1 . . . . . . 2 2 Parts Lost 54 | . . . 11 5 . . . . . 3 . 34 1 Power 11 | . . . 1 1 . . . . . 1 . 8 . Propulsion 17 | . . . 4 1 . . . . . . . 11 1 Utility 16 | . . . 1 1 . . . . . 2 . 12 . Weapon 10 | . . . 5 2 . . . . . . . 3 . Highest Loss Streak 19 | . . . 10 3 . . . . . 2 . 19 1 To Critical Strikes 1 | . . . . . . . . . . . . 1 . Average Backups 12 | . 5 10 14 13 14 14 15 15 12 12 13 12 2 Power 1 | . 1 1 . 1 1 1 1 1 1 . . 1 . Propulsion 2 | . 2 4 3 1 . 3 4 4 2 3 4 2 . Utility 3 | . . . 4 4 8 5 6 6 4 3 3 3 . Weapon 4 | . 1 4 5 5 4 3 4 4 4 5 6 4 2 Tool/Special . | . . . . . . . . . . . . . . Unused Backups 48 | . 2 3 10 4 7 4 1 . 2 . . 12 3 Power 5 | . . 1 1 1 1 1 . . . . . . . Propulsion 8 | . 1 . 4 . . . . . . . . 3 . Utility 10 | . . . 1 2 1 2 1 . 2 . . . 1 Weapon 25 | . 1 2 4 1 5 1 . . . . . 9 2 Tool/Special . | . . . . . . . . . . . . . . Average Slot Usage (%) 95 | . 98 99 97 96 99 99 100 100 99 99 100 94 24 Engine 8 | . 14 11 9 6 7 11 11 11 10 10 10 6 . Reactor 1 | . . . . . . . . . . . . 5 3 Treads 14 | . 17 32 26 20 25 22 23 23 3 . . . . Leg 8 | . 9 . . . . . . . 17 21 21 20 2 Device 19 | . 13 3 15 22 20 28 29 29 30 26 26 21 13 Storage 8 | . 14 22 16 7 6 5 5 5 5 5 5 4 . Processor 9 | . . 7 1 4 . 9 11 11 15 19 21 16 . Protection 2 | . . . 1 9 13 1 . . . . . 1 . Energy Gun 6 | . . . 20 22 6 . . . . . . 4 . Energy Cannon 6 | . . . . . 12 17 11 11 13 14 15 7 . Ballistic Cannon 3 | . 18 21 4 . . . . . . . . . . Peak Build Rating 135 | 6 12 20 37 46 59 70 70 70 94 96 96 135 54 Average Rating 65 | 4 10 17 31 42 53 68 69 70 90 94 96 115 34 On Entrance 48 | . 6 12 19 37 46 57 70 70 70 94 96 96 10 Avg Prop Armor Cover (%) 5 | . . . . . . . . . . . . 6 5 Naked Turns 41 | . . . . . . . . . . . . 10 31 Heaviest Build 114 | 11 24 39 45 55 74 78 67 67 71 71 64 114 18 Greatest Support 128 | 20 46 69 69 63 80 80 80 80 92 92 92 128 28 Greatest Overweight (x) 5 | . 5 . 1 1 . 1 . . . . . 4 2 Average Overweight (x) . | . . . . . . . . . . . . . . Largest Inventory Capacity 15 | 8 10 15 15 15 15 15 15 15 15 15 15 15 5 Average Capacity 14 | 5 9 12 15 15 15 15 15 15 15 15 15 14 5 Most Carried 15 | 2 8 15 15 15 15 15 15 15 15 15 14 15 5 Average Carried 12 | 1 5 10 14 13 14 14 14 15 13 13 14 13 2 Final Capacity 15 | 8 10 15 15 15 15 15 15 15 15 15 15 5 5 Final Carried 15 | 2 8 14 15 15 15 15 15 15 14 14 14 5 5 Class Distribution -------------------- 29% | Gunner 28% | Skirmisher 19% | Mutant 19% | Tank Dominant Class ---------------- Mutant | -10/Materials Mutant | -9/Materials Gunner | -8/Materials Tank | -7/Factory Tank | -6/Factory Gunner | -5/Factory Gunner | -5/Upper Caves Gunner | -5/Upper Caves Gunner | -4/Factory Skirmisher | -4/Upper Caves Skirmisher | -4/Upper Caves Skirmisher | -3/Research Mutant | -3/Quarantine Resources | -11 -10 -9 -8 -7 -6 -5 -5 -5 -4 -4 -4 -3 -3 ----------- Run | Yrd Mat Mat Mat Fac Fac Fac Upp Upp Fac Upp Upp Res Qua Matter Collected 3030 | 260 61 604 592 313 158 170 74 . . 149 . 649 . Remotely . | . . . . . . . . . . . . . . Salvage Created 5132 | . 66 457 1140 768 267 494 61 . . 290 . 1589 . Parts 277 | . 3 41 44 39 17 22 6 . . 8 . 97 . Haulers Intercepted 7 | . . 1 3 1 . 2 . . . . . . . Recyclers Shooed . | . . . . . . . . . . . . . . Parts Field Recycled . | . . . . . . . . . . . . . . Retrieved Matter . | . . . . . . . . . . . . . . Parts Self-Destructed 11 | . . . . . . . 5 . . 6 . . . Prevented 5 | . . . . . . . . . . 5 . . . Parts Restored . | . . . . . . . . . . . . . . Kills | -11 -10 -9 -8 -7 -6 -5 -5 -5 -4 -4 -4 -3 -3 ------- Run | Yrd Mat Mat Mat Fac Fac Fac Upp Upp Fac Upp Upp Res Qua Combat Hostiles Destroyed 118 | . 3 20 24 16 8 5 4 . . 5 . 33 . Guns 33 | . 2 . 12 13 . . . . . . . 6 . Cannons 58 | . 1 20 11 . 5 5 2 . . 3 . 11 . AOE 24 | . . . . 3 3 . 2 . . 1 . 15 . Classes Destroyed 15 | . 3 5 3 2 1 . . . . . . 1 . Worker 6 | . . 1 . 1 . 1 . . . . . 3 . Builder 5 | . . . . 1 . . . . . . . 4 . Tunneler 2 | . . . . . . . . . . . . 2 . Hauler 7 | . . 1 3 1 . 2 . . . . . . . Recycler 1 | . . 1 . . . . . . . . . . . Operator 2 | . 1 1 . . . . . . . . . . . Watcher 15 | . 1 2 2 3 . 1 . . . . . 6 . Swarmer 50 | . 3 15 6 4 4 . 4 . . . . 14 . Grunt 27 | . . 4 11 9 . 2 . . . . . 1 . Brawler 2 | . . . 1 . . . . . . 1 . . . Duelist 3 | . . . 1 1 . . . . . 1 . . . Sentry 9 | . . 1 4 . 1 . . . . 1 . 2 . Specialist 2 | . . . . . 2 . . . . . . . . Hunter 5 | . . . 1 . . 1 . . . 2 . 1 . Programmer 20 | . . . . 2 1 2 . . . . . 15 . Best Kill Streak 11 | . 2 6 11 6 4 4 4 . . 3 . 9 . Combat Bots Only 10 | . 2 5 10 5 4 2 4 . . 3 . 5 . Max Kills in Single Turn 6 | . 1 2 2 2 2 3 2 . . 1 . 6 . Gunslinging . | . . . . . . . . . . . . . . Exploded 5 | . . . . 1 2 . 2 . . 1 . 5 . Melee . | . . . . . . . . . . . . . . Uniques/NPCs Destroyed . | . . . . . . . . . . . . . . Combat | -11 -10 -9 -8 -7 -6 -5 -5 -5 -4 -4 -4 -3 -3 -------- Run | Yrd Mat Mat Mat Fac Fac Fac Upp Upp Fac Upp Upp Res Qua Hostile Shots Fired 1036 | . 11 69 198 85 45 23 22 . . 66 . 457 60 Missed 320 | . 2 15 53 27 10 6 4 . . 29 . 138 36 Deflected 3 | . . . . . . . . . . . . 3 . Hits 716 | . 9 54 145 58 35 17 18 . . 37 . 319 24 Melee 4 | . . . 3 1 . . . . . . . . . Projectile 712 | . 9 54 142 57 35 17 18 . . 37 . 319 24 AOE 1 | . . . 1 . . . . . . . . . . Critical Strikes 24 | . . . 5 1 . . . . . 1 . 15 2 Part Disruptions 2 | . . . . . . . . . . . . 2 . Damage Taken 12100 | . 76 444 2004 915 371 315 197 . . 643 . 6776 359 Core 1689 | . . 67 170 57 12 13 . . . 67 . 1045 258 Absorbed by Shields 572 | . . . . . . 116 76 . . 69 . 311 . Ignored by Resistances 571 | . . . . . 81 . . . . . . 283 207 Regen/Repaired (Parts) 39 | . . 39 . . . . . . . . . . . Core Remaining (%) 91 | 100 100 83 69 91 98 . . 98 . . 94 . . Volleys Fired 326 | . 11 41 70 46 14 23 5 . 1 11 1 103 . Largest 3 | . 2 2 3 3 3 3 3 . 1 3 1 3 . Hottest 540 | . 66 66 183 183 265 265 265 . 90 270 90 540 . Shots Fired 805 | . 22 82 194 124 34 69 12 . 1 29 1 237 . Gun 307 | . 8 . 128 120 . . . . . . . 51 . Cannon 476 | . 14 82 64 . 32 69 11 . 1 27 1 175 . Launcher 22 | . . . 2 4 2 . 1 . . 2 . 11 . Special . | . . . . . . . . . . . . . . Kinetic 168 | . 22 82 64 . . . . . . . . . . Thermal 603 | . . . 116 120 32 69 11 . 1 27 1 226 . Explosive 20 | . . . . 4 2 . 1 . . 2 . 11 . Electromagnetic 14 | . . . 14 . . . . . . . . . . Robot Hit Streak 18 | . 3 6 12 9 7 6 3 . . 8 . 18 . Robot Miss Streak 7 | . 4 4 7 5 5 2 3 . . 3 . 4 . Penetration Max . | . . . . . . . . . . . . . . Secondary Targets 4 | . . . . 4 . . . . . . . . . Max Gunslinging Chain 1 | . . . . 1 . . . . . . . . . Shots Hit Robots 410 | . 9 39 104 73 15 30 5 . . 16 . 119 . Core Hits 239 | . 6 24 46 43 12 13 3 . . 9 . 83 . Critical Kills 2 | . . . . . . . . . . 1 . 1 . Critical Parts Destroyed . | . . . . . . . . . . . . . . Critical Strikes 20 | . 2 6 7 3 . . . . . 1 . 1 . Burn 9 | . . . 6 3 . . . . . . . . . Meltdown 2 | . . . . . . . . . . 1 . 1 . Blast 9 | . 2 6 1 . . . . . . . . . . Melee Attacks . | . . . . . . . . . . . . . . Impact . | . . . . . . . . . . . . . . Slashing . | . . . . . . . . . . . . . . Piercing . | . . . . . . . . . . . . . . Sneak Attacks . | . . . . . . . . . . . . . . Combat Hostiles . | . . . . . . . . . . . . . . Follow-up Attacks . | . . . . . . . . . . . . . . Damage Inflicted 14969 | . 155 910 2209 2049 646 1394 253 . . 722 . 6631 . Guns 4048 | . 50 . 1359 1608 . . . . . . . 1031 . Cannons 7463 | . 105 900 850 . 425 1151 162 . . 497 . 3373 . Explosions 3448 | . . . . 441 221 243 91 . . 225 . 2227 . Melee . | . . . . . . . . . . . . . . Ramming 10 | . . 10 . . . . . . . . . . . Kinetic 1905 | . 155 900 850 . . . . . . . . . . Thermal 9724 | . . . 1234 1608 425 1394 162 . . 497 . 4404 . Explosive 3205 | . . . . 441 221 . 91 . . 225 . 2227 . Electromagnetic 125 | . . . 125 . . . . . . . . . . Impact . | . . . . . . . . . . . . . . Slashing . | . . . . . . . . . . . . . . Piercing . | . . . . . . . . . . . . . . Highest Corruption 28 | . . . 2 3 . 2 2 2 . . . 27 28 Average Corruption 7 | . . . 2 1 . 1 2 2 . . . 11 27 Corruption Purged . | . . . . . . . . . . . . . . Corruption Blocked . | . . . . . . . . . . . . . . Effects 110 | . . . 11 6 . 3 8 1 . . . 69 12 Message Errors 19 | . . . 1 1 . . 1 . . . . 13 3 Matter Fused 27 | . . . 3 . . 1 3 1 . . . 18 1 Heat Flow Errors 10 | . . . 1 1 . . 2 . . . . 5 1 Energy Discharges 10 | . . . 2 1 . 1 . . . . . 6 . Parts Rejected 3 | . . . . . . . . . . . . 2 1 Parts Fused 2 | . . . . . . . 1 . . . . 1 . Data Loss (minor) 14 | . . . 3 2 . . . . . . . 7 2 Data Loss (major) 8 | . . . 1 . . . 1 . . . . 3 3 Misfires 1 | . . . . . . . . . . . . 1 . Alerts 3 | . . . . . . 1 . . . . . 2 . Misdirections 3 | . . . . . . . . . . . . 2 1 Weapon Failures 10 | . . . . 1 . . . . . . . 9 . Overload Shots 30 | . . . . . . . . . . . . 30 . Overflow Damage 462 | . 3 13 12 . . 63 23 . . 44 . 304 . Projectiles 203 | . 3 13 12 . . 5 23 . . . . 147 . Explosions 259 | . . . . . . 58 . . . 44 . 157 . Melee . | . . . . . . . . . . . . . . Knockbacks 14 | . 1 5 8 . . . . . . . . . . Impact . | . . . . . . . . . . . . . . Kinetic 12 | . 1 4 7 . . . . . . . . . . Secondary 2 | . . 1 1 . . . . . . . . . . Self-Inflicted Damage 254 | . . . 31 . . 114 . . . . . 109 . Shots 7 | . . . 2 . . 2 . . . . . 3 . Rammed 1 | . . 1 . . . . . . . . . . . Targets Rammed 1 | . . 1 . . . . . . . . . . . Kicked . | . . . . . . . . . . . . . . Crushed . | . . . . . . . . . . . . . . Highest Temperature 680 | . 30 19 283 84 . . 5 . . . . 680 60 Average Temperature 198 | . 12 10 121 44 . . 3 . . . . 274 60 Received Heat Transfer 1560 | . . 51 846 324 48 24 . . . 18 . 249 . Effects 6 | . . . 1 . . . . . . . . 5 . Energy Bleed 4 | . . . 1 . . . . . . . . 3 . Interference 1 | . . . . . . . . . . . . 1 . Damage (minor) 1 | . . . . . . . . . . . . 1 . Siege Activations . | . . . . . . . . . . . . . . Martial Activations . | . . . . . . . . . . . . . . Shielding Activations 1 | . . . . . . . . . . . . 1 . Total Turns 12 | . . . . . . . . . . . . 12 . Longest Duration 12 | . . . . . . . . . . . . 12 . Robots Disrupted . | . . . . . . . . . . . . . . Combat Hostiles . | . . . . . . . . . . . . . . Robots Corrupted . | . . . . . . . . . . . . . . Combat Hostiles . | . . . . . . . . . . . . . . Parts Fried . | . . . . . . . . . . . . . . Impact Corruptions . | . . . . . . . . . . . . . . Robots Melted 4 | . . . 1 . . . . . . 1 . 2 . Combat Hostiles 3 | . . . 1 . . . . . . 1 . 1 . Parts Melted 38 | . . . 9 6 1 4 1 . . . . 17 . Heat Transferred 13134 | . . . 2701 2997 518 1334 185 . . 555 . 4844 . Parts Sabotaged . | . . . . . . . . . . . . . . Parts Stolen . | . . . . . . . . . . . . . . Parts Stripped . | . . . . . . . . . . . . . . Power Chain Reactions . | . . . . . . . . . . . . . . Alert | -11 -10 -9 -8 -7 -6 -5 -5 -5 -4 -4 -4 -3 -3 ------- Run | Yrd Mat Mat Mat Fac Fac Fac Upp Upp Fac Upp Upp Res Qua Maximum Alert Level 2 | . . 1 1 . . 2 . . . . . 2 1 Low Security (%) 78 | 100 100 86 47 100 100 78 . . 100 . . 72 39 Level 1 20 | . . 13 52 . . 12 . . . . . 25 60 Level 2 1 | . . . . . . 8 . . . . . 2 . Level 3 . | . . . . . . . . . . . . . . Level 4 . | . . . . . . . . . . . . . . Level 5 . | . . . . . . . . . . . . . . High Security . | . . . . . . . . . . . . . . Max Security . | . . . . . . . . . . . . . . Peak Influence 453 | . 32 234 253 190 100 444 . . 53 . . 453 252 Initial 252 | . . . . 102 63 42 . . 53 . . . 252 Average 117 | . 5 76 176 125 45 113 . . 16 . . 144 205 Influence Increases 4379 | . 93 560 759 518 231 628 90 . 15 110 . 1375 . Destroy 0b10 Robot/C 2360 | . 60 400 480 320 160 100 80 . . 100 . 660 . Destroy 0b10 Robot/NC 190 | . 10 30 25 30 . 20 . . . . . 75 . Destroy Leader 464 | . 12 56 110 68 40 26 10 . . 10 . 132 . Successful Hack 232 | . 9 40 46 22 6 34 . . . . . 75 . Disable Machine 330 | . . 15 30 30 . 210 . . 15 . . 30 . Destroy Structure 533 | . 2 4 8 18 25 238 . . . . . 238 . Lose Combat Pursuer 270 | . . 15 60 30 . . . . . . . 165 . Influence Decreases 4227 | . 93 560 532 615 274 287 349 83 101 110 . 926 297 Entered New Map 659 | . . . . 125 67 45 159 33 33 . . . 197 Time Decay 2824 | . 93 356 422 440 207 242 190 50 68 80 . 586 90 Lost Part 540 | . . . 110 50 . . . . . 30 . 340 10 Purge Threat 204 | . . 204 . . . . . . . . . . . Squads Dispatched 20 | . . . 2 3 2 1 . . . . . 11 1 Investigation 1 | . . . 1 . . . . . . . . . . Extermination 10 | . . . . 2 1 1 . . . . . 6 . Reinforcement 8 | . . . 1 1 1 . . . . . . 4 1 Assault . | . . . . . . . . . . . . . . Garrison 1 | . . . . . . . . . . . . 1 . Intercept . | . . . . . . . . . . . . . . Searches Triggered . | . . . . . . . . . . . . . . Construction Impeded 1 | . . . . . . . . . . . . 1 . Haulers Reinforced . | . . . . . . . . . . . . . . Active Scanning Responses . | . . . . . . . . . . . . . . Cargo Convoy Interrupts . | . . . . . . . . . . . . . . Stealth | -11 -10 -9 -8 -7 -6 -5 -5 -5 -4 -4 -4 -3 -3 --------- Run | Yrd Mat Mat Mat Fac Fac Fac Upp Upp Fac Upp Upp Res Qua Distress Signals 9 | . . 1 5 1 . . . . . . . 1 1 Communications Jammed 20 | . . . . . . . . . . . . 20 . Distress Signals 19 | . . . . . . . . . . . . 19 . Times Spotted 179 | . 6 25 31 22 7 8 3 . . 5 . 65 7 Peak Tracking Total 13 | . 1 4 13 4 4 3 3 . . 3 . 9 4 Tactical Retreats 12 | . . 1 2 2 . . . . . . . 7 . Traps | -11 -10 -9 -8 -7 -6 -5 -5 -5 -4 -4 -4 -3 -3 ------- Run | Yrd Mat Mat Mat Fac Fac Fac Upp Upp Fac Upp Upp Res Qua Traps Triggered 6 | . . . . . . 1 . . . . . 5 . Indirectly . | . . . . . . . . . . . . . . Trap Hack Attempts . | . . . . . . . . . . . . . . Triggered . | . . . . . . . . . . . . . . Disarmed . | . . . . . . . . . . . . . . Reprogrammed . | . . . . . . . . . . . . . . Reused . | . . . . . . . . . . . . . . Traps Extracted . | . . . . . . . . . . . . . . Installed . | . . . . . . . . . . . . . . Triggered . | . . . . . . . . . . . . . . Machines | -11 -10 -9 -8 -7 -6 -5 -5 -5 -4 -4 -4 -3 -3 ---------- Run | Yrd Mat Mat Mat Fac Fac Fac Upp Upp Fac Upp Upp Res Qua Machines Disabled 22 | . . 1 2 2 . 14 . . 1 . . 2 . Max in Single Turn 5 | . . 1 1 1 . 5 . . 1 . . 1 . Garrison Access 2 | . . . . . . 1 . . 1 . . . . Machines Repaired . | . . . . . . . . . . . . . . Machines Dismantled . | . . . . . . . . . . . . . . Machines Sabotaged . | . . . . . . . . . . . . . . Overloaded Fab Kills . | . . . . . . . . . . . . . . Hacking | -11 -10 -9 -8 -7 -6 -5 -5 -5 -4 -4 -4 -3 -3 --------- Run | Yrd Mat Mat Mat Fac Fac Fac Upp Upp Fac Upp Upp Res Qua Machines Accessed 46 | . 5 8 6 6 3 6 1 . 2 1 . 7 1 Terminals 24 | . 3 6 4 2 1 2 1 . . 1 . 3 1 Fabricators 5 | . . . . 1 . 1 . . 1 . . 2 . Repair Stations 7 | . 1 1 2 1 . 2 . . . . . . . Recycling Units 5 | . 1 1 . . 2 . . . . . . 1 . Scanalyzers 2 | . . . . 2 . . . . . . . . . Garrison Access 3 | . . . . . . 1 . . 1 . . 1 . Total Hacks 112 | . 17 19 22 14 6 16 2 . 4 1 . 10 1 Successful 57 | . 9 14 10 6 2 7 2 . 3 1 . 3 . Failed 54 | . 8 5 12 7 4 9 . . 1 . . 7 1 Catastrophic 11 | . . . 3 1 1 2 . . . . . 3 1 Database Lockouts 1 | . . . . 1 . . . . . . . . . Manual 62 | . 13 8 15 5 5 5 . . 1 . 1 9 . Terminals 64 | . 11 14 18 3 1 8 2 . . 1 . 5 1 Fabricators 10 | . . . . 2 . 4 . . 2 . . 2 . Repair Stations 13 | . 1 3 4 3 . 2 . . . . . . . Recycling Units 14 | . 5 2 . . 5 . . . . . . 2 . Scanalyzers 6 | . . . . 6 . . . . . . . . . Garrison Access 5 | . . . . . . 2 . . 2 . . 1 . Terminal Hacks 18 | . 2 6 5 . . 2 2 . . 1 . . . Record 4 | . . 1 . . . . 2 . . 1 . . . Robot Analysis 3 | . 1 1 1 . . . . . . . . . . Prototype ID Bank 1 | . . . 1 . . . . . . . . . . Alert Level 1 | . . . . . . 1 . . . . . . . Unreport Threat 2 | . . 2 . . . . . . . . . . . Locate Traps 2 | . 1 . 1 . . . . . . . . . . Dispatch Records 1 | . . . 1 . . . . . . . . . . Zone Layout 4 | . . 2 1 . . 1 . . . . . . . Fabricator Hacks 2 | . . . . . . 1 . . 1 . . . . Network Status 2 | . . . . . . 1 . . 1 . . . . Repair Station Hacks 4 | . . 2 1 1 . . . . . . . . . Scan Component 3 | . . 1 1 1 . . . . . . . . . Repair 1 | . . 1 . . . . . . . . . . . Recycling Unit Hacks 2 | . 2 . . . . . . . . . . . . Report Inventory 1 | . 1 . . . . . . . . . . . . Retrieve Components 1 | . 1 . . . . . . . . . . . . Scanalyzer 2 | . . . . 2 . . . . . . . . . Retrieve Study 2 | . . . . 2 . . . . . . . . . Garrison Access Hacks 2 | . . . . . . 1 . . 1 . . . . Seal Access 2 | . . . . . . 1 . . 1 . . . . Unauthorized Hacks 27 | . 5 6 4 3 2 3 . . 1 . . 3 . Terminals 11 | . 2 3 3 1 . 2 . . . . . . . Botnet 11 | . 2 3 3 1 . 2 . . . . . . . Fabricators 2 | . . . . . . . . . 1 . . 1 . Liberate 2 | . . . . . . . . . 1 . . 1 . Repair Stations 5 | . 1 1 1 1 . 1 . . . . . . . Mechanics 5 | . 1 1 1 1 . 1 . . . . . . . Recycling Units 8 | . 2 2 . . 2 . . . . . . 2 . Monitor 1 | . 1 . . . . . . . . . . . . Recyclers 4 | . 1 1 . . 1 . . . . . . 1 . Mask 3 | . . 1 . . 1 . . . . . . 1 . Scanalyzers 1 | . . . . 1 . . . . . . . . . Researchers 1 | . . . . 1 . . . . . . . . . Garrison Access . | . . . . . . . . . . . . . . Data Cores Recovered 2 | . 1 1 . . . . . . . . . . . Used . | . . . . . . . . . . . . . . Hacking Detections 41 | . 4 7 6 6 3 5 1 . 1 . . 7 1 Full Trace Events 2 | . 1 . 1 . . . . . . . . . . Feedback Events . | . . . . . . . . . . . . . . Feedback Blocked . | . . . . . . . . . . . . . . Robot Schematics Acquired . | . . . . . . . . . . . . . . Robots Built . | . . . . . . . . . . . . . . Authchips . | . . . . . . . . . . . . . . Time . | . . . . . . . . . . . . . . Total Robot Build Rating . | . . . . . . . . . . . . . . Part Schematics Acquired . | . . . . . . . . . . . . . . Parts Built . | . . . . . . . . . . . . . . Authchips . | . . . . . . . . . . . . . . Time . | . . . . . . . . . . . . . . Total Part Build Rating . | . . . . . . . . . . . . . . Part Studies Acquired 2 | . . . . 2 . . . . . . . . . Parts Repaired 1 | . . 1 . . . . . . . . . . . Time 32 | . . 32 . . . . . . . . . . . Parts Recycled . | . . . . . . . . . . . . . . Recycled Matter . | . . . . . . . . . . . . . . Retrieved Matter . | . . . . . . . . . . . . . . Retrieved Components 1 | . 1 . . . . . . . . . . . . Parts Scanalyzed . | . . . . . . . . . . . . . . Part Schematics Acquired . | . . . . . . . . . . . . . . Parts Damaged . | . . . . . . . . . . . . . . Bothacking | -11 -10 -9 -8 -7 -6 -5 -5 -5 -4 -4 -4 -3 -3 ------------ Run | Yrd Mat Mat Mat Fac Fac Fac Upp Upp Fac Upp Upp Res Qua Used RIF Installer . | . . . . . . . . . . . . . . Robots Hacked . | . . . . . . . . . . . . . . Non-combat . | . . . . . . . . . . . . . . Combat . | . . . . . . . . . . . . . . Robot Hacks Applied . | . . . . . . . . . . . . . . Relay Couplers Released . | . . . . . . . . . . . . . . Fabnet Peak Effective % . | . . . . . . . . . . . . . . Robots Rewired . | . . . . . . . . . . . . . . Allies Hacked . | . . . . . . . . . . . . . . Hacks Repelled . | . . . . . . . . . . . . . . Allies | -11 -10 -9 -8 -7 -6 -5 -5 -5 -4 -4 -4 -3 -3 -------- Run | Yrd Mat Mat Mat Fac Fac Fac Upp Upp Fac Upp Upp Res Qua Total Allies . | . . . . . . . . . . . . . . Largest Group . | . . . . . . . . . . . . . . Highest-Rated Group . | . . . . . . . . . . . . . . Highest-Rated Ally . | . . . . . . . . . . . . . . Total Orders . | . . . . . . . . . . . . . . Ally Attacks . | . . . . . . . . . . . . . . Total Damage . | . . . . . . . . . . . . . . Kills . | . . . . . . . . . . . . . . Allies Corrupted . | . . . . . . . . . . . . . . Allies Melted . | . . . . . . . . . . . . . . Intel | -11 -10 -9 -8 -7 -6 -5 -5 -5 -4 -4 -4 -3 -3 ------- Run | Yrd Mat Mat Mat Fac Fac Fac Upp Upp Fac Upp Upp Res Qua Active Infowar (turns) 5994 | . 423 345 157 335 . 553 394 117 216 623 83 2615 133 Optics 4601 | . . . . . . 553 394 117 216 623 83 2615 . Sensors 2697 | . . . 157 335 . . . . . 526 83 1596 . Terrain 768 | . 423 345 . . . . . . . . . . . Decoding 3396 | . . . . . . . . . 216 623 83 2474 . T.N.C. 7 | . . . . 7 . . . . . . . . . Jamming 3417 | . . . . . . . . . 215 549 83 2570 . ECM 133 | . . . . . . . . . . . . . 133 Robot Analysis Total 3 | . 1 1 1 . . . . . . . . . . Derelict Logs Recovered 4 | . . . . . . . 1 1 . 2 . . . Drone Launches . | . . . . . . . . . . . . . . Drone Recoveries . | . . . . . . . . . . . . . . Decoded 0b10 Intel 70 | . . . . . . . . . 4 . . 66 . Traps 10 | . . . . . . . . . . . . 10 . Emergency Access 7 | . . . . . . . . . . . . 7 . Items 41 | . . . . . . . . . 3 . . 38 . Machines 1 | . . . . . . . . . . . . 1 . Patrols 7 | . . . . . . . . . . . . 7 . Guards 3 | . . . . . . . . . 1 . . 2 . Exits 1 | . . . . . . . . . . . . 1 . Exploration | -11 -10 -9 -8 -7 -6 -5 -5 -5 -4 -4 -4 -3 -3 ------------- Run | Yrd Mat Mat Mat Fac Fac Fac Upp Upp Fac Upp Upp Res Qua Turns Passed 9527 | 83 438 1078 1253 1093 559 722 394 117 216 623 83 2669 199 Spaces Moved 5171 | 66 247 551 579 500 276 334 224 71 154 470 68 1406 225 Core 95 | 9 3 . . . . . . . . . . 21 62 Treads 2686 | . 137 551 579 500 276 334 224 71 14 . . . . Legs 2241 | 57 107 . . . . . . . 140 470 68 1283 116 Wheels . | . . . . . . . . . . . . . . Hover 43 | . . . . . . . . . . . . 43 . Flight 106 | . . . . . . . . . . . . 59 47 Fastest Speed 40 | 50 120 160 160 166 167 167 167 167 120 120 120 40 40 Average Speed 141 | 110 144 160 164 180 169 167 167 167 124 120 120 114 80 Slowest Speed 300 | 120 300 160 240 210 170 219 167 167 167 120 120 300 150 Overloaded Moves . | . . . . . . . . . . . . . . Propulsion Burnouts . | . . . . . . . . . . . . . . Robots Hopped 7 | . . . . . . . . . . . . 2 5 Potential Cave-ins 2 | . . . . . . . . . . . . 2 . Cave-ins Triggered . | . . . . . . . . . . . . . . Exploration Rate (%) 30 | 4 47 40 49 15 10 13 53 15 5 75 12 42 41 Regions Visited 13 Branch Regions 5 Pre-discovered Areas . | . . . . . . . . . . . . . . Known Exits Taken 3 | . . . . . . . . . . 1 1 1 . Unknown Exits Taken 10 | 1 1 1 1 1 1 1 1 1 1 . . . . Scrap Searched 4 | . . . . . . . 2 . . 2 . . . Spaces Dug 86 | . . 1 . . . 59 . . . . . 26 . Terrain Destroyed 395 | . 2 4 5 17 36 144 19 . . 29 1 138 . Melee . | . . . . . . . . . . . . . . Projectile 108 | . 2 4 5 1 9 25 5 . . 10 1 46 . AOE 287 | . . . . 16 27 119 14 . . 19 . 92 . Terrain Rammed . | . . . . . . . . . . . . . . Walls Destroyed . | . . . . . . . . . . . . . . Machines Disabled . | . . . . . . . . . . . . . . Actions | -11 -10 -9 -8 -7 -6 -5 -5 -5 -4 -4 -4 -3 -3 --------- Run | Yrd Mat Mat Mat Fac Fac Fac Upp Upp Fac Upp Upp Res Qua Total 6725 | 73 308 667 735 595 343 448 235 70 180 505 68 2264 234 Wait 823 | . 31 44 10 13 9 65 . . 7 16 . 626 2 Move 5144 | 65 246 550 578 499 275 333 223 70 153 469 67 1401 215 Hop 7 | . . . . . . . . . . . . 2 5 Pick Up 127 | 2 5 12 25 15 10 9 2 . 6 3 . 35 3 Fast Attach 65 | 6 6 3 10 2 9 5 1 . . . . 17 6 Attach 69 | . . 4 11 8 3 4 . . 6 3 . 27 3 Detach 9 | . 3 2 2 . 1 . . . . . . 1 . Swap 28 | . 1 3 6 2 3 . 1 . 1 3 . 8 . Drop 116 | . 5 7 23 10 19 9 3 . 6 . . 34 . Fire 326 | . 11 41 70 46 14 23 5 . 1 11 1 103 . Melee . | . . . . . . . . . . . . . . Ram . | . . . . . . . . . . . . . . Kick . | . . . . . . . . . . . . . . Crush 1 | . . 1 . . . . . . . . . . . Escape Stasis 10 | . . . . . . . . . . . . 10 . Rewire . | . . . . . . . . . . . . . . Trap . | . . . . . . . . . . . . . . Miscellaneous . | . . . . . . . . . . . . . . Route ------- -11/Scrapyard -10/Materials -9/Materials -8/Materials -7/Factory -6/Factory -5/Factory -5/Upper Caves -5/Upper Caves -4/Factory -4/Upper Caves -4/Upper Caves -3/Research (discovered 2 exits: *Qua x2) -3/Quarantine History --------- Turn | Location | Event 9 | -11/Scrapyard | Discovered new exit (range 16) 84 | -11/Scrapyard | Entered Materials 325 | -10/Materials | Build established: Mutant 475 | -10/Materials | Discovered new exit (range 8) 522 | -10/Materials | Entered another Materials area 522 | -9/Materials | Evolved 2 slots: Propulsion x1, Utility x1 1134 | -9/Materials | Discovered new exit (range 12) 1220 | -9/Materials | Repaired Imp. Treads 1600 | -9/Materials | Entered another Materials area 1600 | -8/Materials | Evolved 2 slots: Utility x1, Weapon x1 1871 | -8/Materials | Destroyed 10 combat bots 1878 | -8/Materials | Lost 10 parts (1p3n1u5w) 2157 | -8/Materials | Build established: Gunner 2800 | -8/Materials | Discovered new exit (range 16) 2853 | -8/Materials | Entered Factory 2853 | -7/Factory | Evolved 2 slots: Utility x2 2875 | -7/Factory | Central database locked down 3141 | -7/Factory | Build established: Skirmisher 3240 | -7/Factory | Lost 3 parts (1n1u1w) 3486 | -7/Factory | Build established: Tank 3899 | -7/Factory | Discovered new exit (range 6) 3946 | -7/Factory | Entered another Factory area 3946 | -6/Factory | Evolved 2 slots: Power x1, Propulsion x1 4397 | -6/Factory | Discovered new exit (range 15) 4505 | -6/Factory | Entered another Factory area 4505 | -5/Factory | Evolved 2 slots: Utility x2 4830 | -5/Factory | Build established: Gunner 5206 | -5/Factory | Discovered new exit (range 9) 5227 | -5/Factory | Entered Upper Caves 5412 | -5/Upper Caves | Encountered a Warlord checkpoint 5517 | -5/Upper Caves | Learned Factory garrison access intel 5611 | -5/Upper Caves | Discovered new exit (range 5) 5621 | -5/Upper Caves | Entered another Upper Caves area 5717 | -5/Upper Caves | Discovered new exit (range 12) 5725 | -5/Upper Caves | Learned Factory terminal intel 5738 | -5/Upper Caves | Entered Factory 5738 | -4/Factory | Evolved 2 slots: Utility x2 5739 | -4/Factory | Loaded intel: 26 terminal locations 5740 | -4/Factory | Loaded intel: 4 garrison access locations 5764 | -4/Factory | Found Hvy. Reactive Plating 5941 | -4/Factory | Discovered new exit (range 7) 5954 | -4/Factory | Entered Upper Caves 6035 | -4/Upper Caves | Attracted the attention of an 0b10 checkpoint 6069 | -4/Upper Caves | Learned location of 1 exit from Research 6148 | -4/Upper Caves | Learned 12 Research zone layouts 6339 | -4/Upper Caves | Build established: Skirmisher 6571 | -4/Upper Caves | Discovered new exit (range 6) 6576 | -4/Upper Caves | Identified exit to Upper Caves 6577 | -4/Upper Caves | Entered another Upper Caves area 6634 | -4/Upper Caves | Discovered new exit (range 6) 6640 | -4/Upper Caves | Identified exit to Research 6648 | -4/Upper Caves | Acquired the password to a Derelict Tinkerer's latest research 6660 | -4/Upper Caves | Entered Research 6660 | -3/Research | Evolved 2 slots: Power x1, Propulsion x1 6661 | -3/Research | Identified exit to Quarantine 7671 | -3/Research | Spotted B-86 Titan 8176 | -3/Research | Spotted B-86 Titan 8273 | -3/Research | System corruption reached 10% 8346 | -3/Research | Found Fusion Bomb Launcher 8404 | -3/Research | Found Prototype Device 8429 | -3/Research | Found Gamma Bomb Array 8546 | -3/Research | Build established: Gunner 8957 | -3/Research | Build established: Tank 9071 | -3/Research | Lost 7 parts (2p3n2u) 9121 | -3/Research | Garrison activated, responded to threat 9282 | -3/Research | Core integrity fell below 50% 9290 | -3/Research | Released all parts (4) 9318 | -3/Research | Lost 19 parts (3p6n8u2w) 9328 | -3/Research | Core integrity fell below 20% 9329 | -3/Research | Entered Quarantine 9356 | -3/Quarantine | Identified Adv. EM Shield 9481 | -3/Quarantine | Released all parts (8) 9528 | -3/Quarantine | Destroyed by P-80 Master with Gamma Rifle Last Messages --------------- 09481_ Released Mic. Antimatter Reactor. 09481_ Released Exp. Power Amplifier. 09481_ Released Adv. Heat Sink. 09481_ Released ECM Suite. 09481_ Released Adv. EM Shield. 09481_ Released Adv. EM Disruption Field. 09481_ R-10 Processor collects Exp. Power Amplifier. 09481_ Acquired Impulse Thruster. 09484_ R-10 Processor collects ECM Suite. 09488_ System corrupted: Matter fused (-5). 09496_ Acquired Adv. Targeting Computer. 09497_ Impulse Thruster destroyed. 09503_ K-01 Serf cleans the Terminal. 09504_ System corrupted: Component data lost. 09509_ O-32 Director: "IFF HANDSHAKE FAILED. SECURING TERMINAL." 09520_ ALERT: Hostiles spotted, dispatching reinforcements to Terminal Q011. 09522_ Acquired Prototype Device. 09524_ &FG93,3T